{"text_format":"1","workbook":"xlsx","n_sheets":1,"sheets":["PV Ouverture "],"not_rendered":{"charts":0,"images":0,"macros":1,"external_links":3,"defined_names":3,"comments":0,"pivot_tables":0},"unopened":[],"bounds":{"document_bytes":16777216,"sheet_cells":100000,"rows_first":2000,"rows_last":500,"rows_between":2000,"halvings":0,"cell_chars":16384,"cell_head_chars":4096},"cells_cut":0,"cells_raw":0,"read":"whole","date_system":"1900"}

{"sheet":"PV Ouverture ","index":0,"n_rows":77,"n_cols":16,"rows_kept":77,"cut":false,"hidden":false,"merged":[[56,0,56,8],[44,1,44,4],[44,5,44,7],[45,1,45,4],[45,5,45,7],[46,1,46,4],[46,5,46,7],[48,0,48,8],[49,0,50,8],[53,0,53,8],[54,0,54,8],[55,0,55,8],[41,1,41,4],[41,5,41,7],[42,1,42,4],[42,5,42,7],[43,1,43,4],[43,5,43,7],[40,1,40,4],[40,5,40,7],[16,7,16,8],[19,0,19,4],[26,0,26,4],[28,0,28,4],[29,0,29,4],[30,0,30,4],[32,0,32,4],[34,0,34,4],[38,0,38,8],[39,1,39,4],[39,5,39,7],[14,1,14,5],[2,0,2,8],[3,0,3,8],[4,0,4,8],[5,0,5,8],[6,0,6,8]]}
[]
[]
[]
[]
["MARCHÉS PUBLICS ET ACCORDS-CADRES"]
["PROCES-VERBAL DE LA COMMISSION INTERNE "]
["DECISION D’OUVERTURE"]
[]
[]
[]
[]
[]
[]
[]
["Objet de la commission :     ",{"$f":"'[2]Matrice Ouverture'!B2","v":0},null,null,null,null,"ESI ",null,"x"]
[null,null,null,null,null,null,"N°de publicité",null,"x"]
["N° d'operation",{"$f":"'[2]Matrice Ouverture'!A2","v":9},null,null,null,null,"Date de la commission","x"]
[]
[]
["- Identification du pouvoir adjudicateur (ou de l’entité adjudicatrice)."]
[]
[]
[]
[]
["Porteur du projet",null,null,null,null,null,null,null,"Nature du budget"]
["x"]
["Date de consultation / mise en ligne",null,null,null,null,null,null,null,"Type de procedure "]
["x",null,null,null,null,null,null,null,"x"]
["Date limite de remise des offres",null,null,null,null,null,null,null,"Type de marché"]
["x",null,null,null,null,null,null,null,"x"]
["Mode deconsultation/ Publicité"]
[]
["Prix limite € HT ",null,null,null,null,null,null,null,"Nom de la MOE"]
[null,null,null,null,null,null,null,null,"x"]
["Critère(s)"]
[{"$f":"[3]matrice!O2","v":"Prix 60% /Prestations 40%"}]
[]
[]
["Membres participants à la commission"]
["Nom, Prenom","Qualité",null,null,null,"Signature",null,null,"Signé le"]
["x","x"]
["x","x"]
["x","x"]
["x","x"]
["x","x"]
["x","x"]
["x","x"]
[]
["Décision de la \ncommission"]
["x"]
[]
[]
[]
[]
["MARCHÉS PUBLICS ET ACCORDS-CADRES"]
["PROCES-VERBAL DE LA COMMISSION INTERNE DPPV"]
["DECISION D’OUVERTURE"]
[]
["Entreprises soumissionaIres","N°de lot","Intitulé du lot","Estimation par lot si lot separés","Montant HT solution de base","Montant HT BPU DQE (eventuel)","Option eventuelle","Variante eventuelle","Commentaires","Autre Colonne ","Autre Colonne ","Autre Colonne ","Autre Colonne ","Autre Colonne ","Autre Colonne ","Autre Colonne "]
["x","x","x","x","x",{"$f":"'[2]Matrice Ouverture'!J2","v":0}]
["x","x","x","x","x",{"$f":"'[2]Matrice Ouverture'!J3","v":0}]
["x","x","x","x","x",{"$f":"'[2]Matrice Ouverture'!J4","v":0}]
["x","x","x",{"$f":"'[2]Matrice Ouverture'!H5","v":0},"x",{"$f":"'[2]Matrice Ouverture'!J5","v":0}]
["x",{"$f":"'[2]Matrice Ouverture'!F6","v":0},{"$f":"'[2]Matrice Ouverture'!G6","v":0},{"$f":"'[2]Matrice Ouverture'!H6","v":0},{"$f":"'[2]Matrice Ouverture'!I6","v":0},{"$f":"'[2]Matrice Ouverture'!J6","v":0}]
["x",{"$f":"'[2]Matrice Ouverture'!F7","v":0},{"$f":"'[2]Matrice Ouverture'!G7","v":0},{"$f":"'[2]Matrice Ouverture'!H7","v":0},{"$f":"'[2]Matrice Ouverture'!I7","v":0},{"$f":"'[2]Matrice Ouverture'!J7","v":0}]
["x",{"$f":"'[2]Matrice Ouverture'!F8","v":0},{"$f":"'[2]Matrice Ouverture'!G8","v":0},{"$f":"'[2]Matrice Ouverture'!H8","v":0},{"$f":"'[2]Matrice Ouverture'!I8","v":0},{"$f":"'[2]Matrice Ouverture'!J8","v":0}]
["x",{"$f":"'[2]Matrice Ouverture'!F9","v":0},{"$f":"'[2]Matrice Ouverture'!G9","v":0},{"$f":"'[2]Matrice Ouverture'!H9","v":0},{"$f":"'[2]Matrice Ouverture'!I9","v":0},{"$f":"'[2]Matrice Ouverture'!J9","v":0}]
["x",{"$f":"'[2]Matrice Ouverture'!F10","v":0},{"$f":"'[2]Matrice Ouverture'!G10","v":0},{"$f":"'[2]Matrice Ouverture'!H10","v":0},{"$f":"'[2]Matrice Ouverture'!I10","v":0},{"$f":"'[2]Matrice Ouverture'!J10","v":0}]
["x",{"$f":"'[2]Matrice Ouverture'!F11","v":0},{"$f":"'[2]Matrice Ouverture'!G11","v":0},{"$f":"'[2]Matrice Ouverture'!H11","v":0},{"$f":"'[2]Matrice Ouverture'!I11","v":0},{"$f":"'[2]Matrice Ouverture'!J11","v":0}]
["x",{"$f":"'[2]Matrice Ouverture'!F12","v":0},{"$f":"'[2]Matrice Ouverture'!G12","v":0},{"$f":"'[2]Matrice Ouverture'!H12","v":0},{"$f":"'[2]Matrice Ouverture'!I12","v":0},{"$f":"'[2]Matrice Ouverture'!J12","v":0}]
["x",{"$f":"'[2]Matrice Ouverture'!F13","v":0},{"$f":"'[2]Matrice Ouverture'!G13","v":0},{"$f":"'[2]Matrice Ouverture'!H13","v":0},{"$f":"'[2]Matrice Ouverture'!I13","v":0},{"$f":"'[2]Matrice Ouverture'!J13","v":0}]
["x",{"$f":"'[2]Matrice Ouverture'!F14","v":0},{"$f":"'[2]Matrice Ouverture'!G14","v":0},{"$f":"'[2]Matrice Ouverture'!H14","v":0},{"$f":"'[2]Matrice Ouverture'!I14","v":0},{"$f":"'[2]Matrice Ouverture'!J14","v":0}]
["x",{"$f":"'[2]Matrice Ouverture'!F15","v":0},{"$f":"'[2]Matrice Ouverture'!G15","v":0},{"$f":"'[2]Matrice Ouverture'!H15","v":0},{"$f":"'[2]Matrice Ouverture'!I15","v":0},{"$f":"'[2]Matrice Ouverture'!J15","v":0}]
["x",{"$f":"'[2]Matrice Ouverture'!F16","v":0},{"$f":"'[2]Matrice Ouverture'!G16","v":0},{"$f":"'[2]Matrice Ouverture'!H16","v":0},{"$f":"'[2]Matrice Ouverture'!I16","v":0},{"$f":"'[2]Matrice Ouverture'!J16","v":0}]
[{"$f":"'[2]Matrice Ouverture'!D17","v":0},{"$f":"'[2]Matrice Ouverture'!F17","v":0},{"$f":"'[2]Matrice Ouverture'!G17","v":0},{"$f":"'[2]Matrice Ouverture'!H17","v":0},{"$f":"'[2]Matrice Ouverture'!I17","v":0},{"$f":"'[2]Matrice Ouverture'!J17","v":0}]
[{"$f":"'[2]Matrice Ouverture'!D18","v":0},{"$f":"'[2]Matrice Ouverture'!F18","v":0},{"$f":"'[2]Matrice Ouverture'!G18","v":0},{"$f":"'[2]Matrice Ouverture'!H18","v":0},{"$f":"'[2]Matrice Ouverture'!I18","v":0},{"$f":"'[2]Matrice Ouverture'!J18","v":0}]
[{"$f":"'[2]Matrice Ouverture'!D19","v":0},{"$f":"'[2]Matrice Ouverture'!F19","v":0},{"$f":"'[2]Matrice Ouverture'!G19","v":0},{"$f":"'[2]Matrice Ouverture'!H19","v":0},{"$f":"'[2]Matrice Ouverture'!I19","v":0},{"$f":"'[2]Matrice Ouverture'!J19","v":0}]